lending/lending_fUSD_20240112
["ID","MTS","AMOUNT","RATE_DAILY","PERIOD"]
[311435006,1705099847466,-4249.37701393,0.00033954,10]
[311435007,1705099847475,-1000.0,0.00034,4]
[311435008,1705099847484,-802.40171117,0.00034,4]
[311435009,1705099847493,-155.0,0.00034,2]
[311435010,1705099847502,-165.0,0.00034456,2]
[311435011,1705099847512,-1604.93,0.00034521,2]
[311435012,1705099847521,-719.652636,0.00034542,2]
[311435013,1705099847531,-180.0,0.00034658,2]
[311435014,1705099847542,-170.8080721,0.00034701,4]
[311435015,1705099847551,-153.84,0.00034703,2]
[311435016,1705099847561,-322.93,0.00034769,2]
[311435017,1705099847571,-150.13,0.00034828,2]
[311435018,1705099847581,-4186.47466178,0.00034838,7]
[311435019,1705099847595,-205.0,0.00034867,19]
[311435020,1705099847604,-150.13,0.0003489,2]
[311435021,1705099847614,-8949.23110012,0.000349,4]
[311435022,1705099847624,-1757.2381,0.000349,2]
[311435023,1705099847635,-892.91001032,0.000349,2]
[311435024,1705099847644,-892.91001016,0.000349,2]
[311435025,1705099847654,-892.91001016,0.000349,2]
[311435026,1705099847664,-892.91001016,0.000349,2]
[311435027,1705099847675,-892.91001016,0.000349,2]
[311435028,1705099847685,-892.91001016,0.000349,2]
[311435029,1705099847695,-892.91001016,0.000349,2]
[311435030,1705099847704,-892.91001016,0.000349,2]
[311435031,1705099847714,-500.0,0.00034957,2]
[311435032,1705099847723,-200.0,0.00034957,2]
[311435033,1705099847732,-150.13,0.0003499,2]
[311435034,1705099847741,-150.13,0.0003499,2]
[311435035,1705099847750,-255.47708732,0.00035,4]
[311435036,1705099847761,-520.40639985,0.00035,4]
[311435037,1705099847770,-1804.81442942,0.00035,4]
[311435038,1705099847780,-526.25866936,0.00035,4]
[311435039,1705099847789,-448.92855048,0.00035,4]
[311435040,1705099847799,-3494.77765478,0.00035,16]
[311435041,1705099847809,-252.96594218,0.00035,3]
[311435042,1705099847818,-16426.79456655,0.00035,2]
[311435043,1705099847827,-155.0,0.00035,2]
[311435044,1705099847836,-1000.0,0.00035,2]
[311435045,1705099847846,-2500.0,0.00035,2]
[311435046,1705099847855,-5000.0,0.00035,2]
[311435047,1705099847864,-155.0,0.00035,4]
[311435048,1705099847874,-1000.0,0.00035,4]
[311435049,1705099847883,-155.72150333,0.00035181,2]
[311435050,1705099847892,-892.91001016,0.00035233,2]
[311435051,1705099847902,-161.49,0.00035355,2]
[311435052,1705099847911,-173.39,0.00035361,2]
[311435053,1705099847920,-719.652636,0.0003541,2]
[311435054,1705099847930,-750.0,0.000356,2]
[311435055,1705099847939,-153.84,0.00035616,2]
[311435056,1705099847975,-800.0,0.00035659,10]
[311435057,1705099847984,-1604.93,0.00035798,2]
[311435058,1705099847994,-1000.0,0.00035908,2]
[311435059,1705099848005,-4186.47466178,0.00035986,8]
[311435060,1705099848015,-150.13,0.0003599,2]
[311435061,1705099848025,-150.13,0.0003599,2]
[311435062,1705099848035,-21699.54526481,0.00036,4]
[311435063,1705099848046,-1660.95673049,0.00036,4]
[311435064,1705099848056,-760.92227324,0.00036,4]
[311435065,1705099848068,-150.13,0.00036079,2]
[311435066,1705099848079,-150.13,0.00036079,2]
[311435067,1705099848090,-7298.57962869,0.00036089,2]
[311435068,1705099848100,-7298.57962868,0.00036089,2]
[311435069,1705099848110,-7298.57962868,0.00036089,2]
[311435070,1705099848121,-7298.57962868,0.00036089,2]
[311435071,1705099848131,-7298.57962868,0.00036089,2]
[311435072,1705099848143,-7298.57962868,0.00036089,2]
[311435073,1705099848154,-150.13,0.00036101,2]
[311435074,1705099848164,-500.0,0.00036102,3]
[311435075,1705099848174,-200.0,0.00036108,2]
[311435076,1705099848185,-500.0,0.00036111,3]
[311435077,1705099848196,-500.0,0.0003612,3]
[311435078,1705099848209,-500.0,0.00036129,3]
[311435079,1705099848222,-500.0,0.00036138,3]
[311435080,1705099848232,-500.0,0.00036146,3]
[311435081,1705099848243,-500.0,0.00036155,3]
[311435082,1705099848255,-500.0,0.00036164,3]
[311435083,1705099848264,-152.0,0.00036188,3]
[311435084,1705099848275,-719.652636,0.00036277,2]
[311435085,1705099848285,-151.0,0.00036391,2]
[311435086,1705099848295,-292.880047,0.00036457,2]
[311435087,1705099848306,-380.898319,0.00036457,2]
[311435088,1705099848316,-392.679316,0.00036457,2]
[311435089,1705099848329,-161.340059,0.00036457,2]
[311435090,1705099848339,-171.397119,0.00036457,2]
[311435091,1705099848350,-153.84,0.0003653,2]
[311435092,1705099848360,-679.39,0.00036613,15]
[311435093,1705099848370,-550.43173131,0.00036663,8]
[311435094,1705099848381,-208.84115953,0.00036663,3]
[311435095,1705099848392,-329.25413795,0.00036663,8]
[311435096,1705099848402,-1000.0,0.00036663,10]
[311435097,1705099848411,-355.39600486,0.00036663,8]
[311435098,1705099848421,-892.91001016,0.00036812,2]
[311435099,1705099848430,-150.13,0.0003683,2]
[311435100,1705099848439,-7298.57962868,0.0003684,2]
[311435101,1705099848449,-158.1960751,0.00036859,2]
[311435102,1705099848459,-161.49,0.00036877,2]
[311435103,1705099848468,-292.880047,0.00036913,2]
[311435104,1705099848478,-380.898319,0.00036913,2]
[311435105,1705099848487,-392.679316,0.00036913,2]
[311435106,1705099848496,-205.0,0.00036961,22]
[311435107,1705099848506,-150.13,0.00036989,2]
[311435108,1705099848515,-150.13,0.00036989,2]
[311435109,1705099848524,-150.13,0.00036989,2]
[311435110,1705099848534,-150.13,0.00036989,2]
[311435111,1705099848544,-150.13,0.00036989,2]
[311435112,1705099848554,-150.13,0.00036989,2]
[311435113,1705099848563,-150.13,0.0003699,2]
[311435114,1705099848573,-150.13,0.0003699,2]
[311435115,1705099848583,-1350.14404346,0.00036996,2]
[311435116,1705099848593,-66227.74621414,0.00036999,3]
[311435117,1705099848603,-30000.0,0.00036999,2]
[311435118,1705099848612,-309.52299924,0.00037,4]
[311435119,1705099848622,-8000.0,0.00037,2]
[311435120,1705099848631,-5000.0,0.00037,3]
[311435121,1705099848641,-190.88642504,0.00037,4]
[311435122,1705099848651,-2500.0,0.00037,12]
[311435123,1705099848662,-28275.35762418,0.00037,15]
[311435124,1705099848671,-322.93,0.00037033,2]
[311435125,1705099848681,-1604.93,0.00037075,2]
[311435126,1705099848691,-150.13,0.0003709,2]
[311435127,1705099848701,-150.13,0.0003709,2]
[311435128,1705099848710,-1332.76,0.000371,3]
[311435129,1705099848719,-1332.76,0.000371,3]
[311435130,1705099848729,-1332.76,0.000371,3]
[311435131,1705099848738,-1332.76,0.000371,3]
[311435132,1705099848747,-1332.76,0.000371,3]
[311435133,1705099848758,-1332.76,0.000371,3]
[311435134,1705099848767,-1332.76,0.000371,3]
[311435135,1705099848777,-1332.76,0.000371,3]
[311435136,1705099848787,-1332.76,0.000371,3]
[311435137,1705099848796,-1332.76,0.000371,3]
[311435138,1705099848805,-1332.76,0.000371,3]
[311435139,1705099848814,-1332.76,0.000371,3]
[311435140,1705099848823,-1332.76,0.000371,3]
[311435141,1705099848834,-1332.76,0.000371,3]
[311435142,1705099848843,-1332.76,0.000371,3]
[311435143,1705099848852,-1332.76,0.000371,3]
[311435144,1705099848862,-1332.76,0.000371,3]
[311435145,1705099848872,-1332.76,0.000371,3]
[311435146,1705099848881,-1332.76,0.000371,3]
[311435147,1705099848890,-1332.76,0.000371,3]
[311435148,1705099848899,-157.8,0.000371,3]
[311435149,1705099848908,-1088.14390847,0.00037133,10]
[311435150,1705099848923,-3098.33075331,0.00037133,10]
[311435151,1705099848932,-719.652636,0.00037144,2]
[311435152,1705099848942,-150.13,0.00037171,2]
[311435153,1705099848951,-5325.12457888,0.00037182,10]
[311435154,1705099848960,-500.0,0.00037202,120]
[311435155,1705099848969,-1967.195732,0.00037202,30]
[311435156,1705099848978,-514.41008872,0.00037202,30]
[311435157,1705099848989,-1389.47571828,0.00037202,30]
[311435158,1705099848999,-305.136571,0.00037202,30]
[311435159,1705099849008,-346.19354555,0.0003724,4]
[311435160,1705099849017,-200.0,0.00037259,2]
[311435161,1705099849026,-2007.18,0.000373,2]
[311435162,1705099849035,-300.000001,0.000373,16]
[311435163,1705099849044,-307.74,0.000373,2]
[311435164,1705099849054,-292.880047,0.00037368,2]
[311435165,1705099849063,-380.898319,0.00037368,2]
[311435166,1705099849072,-392.679316,0.00037368,2]
[311435167,1705099849083,-153.84,0.00037443,2]
[311435168,1705099849093,-657.26697925,0.000375,2]
[311435169,1705099849102,-150.13,0.00037507,2]
[311435170,1705099849111,-150.13,0.00037507,2]
[311435171,1705099849121,-150.13,0.00037507,2]
[311435172,1705099849130,-150.13,0.00037509,2]
[311435173,1705099849139,-10043.33894231,0.00037517,10]
[311435174,1705099849172,-150.0,0.00023,2]
[311435175,1705099849182,-219.10608296,0.00037517,10]
[311435176,1705099849193,-23742.40732938,0.00037517,10]
[311435177,1705099849204,-5705.66699413,0.00037517,10]
[311435178,1705099849216,-1172.762,0.00037517,10]
[311435179,1705099849228,-528.4399995,0.00037517,10]
[311435180,1705099849239,-470.09150982,0.00037517,10]
[311435181,1705099849251,-6044.3083518,0.00037517,10]
[311435182,1705099849260,-5325.12457888,0.00037519,10]
[311435183,1705099849269,-350.0,0.00037529,2]
[311435184,1705099849278,-500.0,0.00037529,2]
[311435185,1705099849288,-500.0,0.00037529,2]
[311435186,1705099849297,-500.0,0.00037529,2]
[311435187,1705099849306,-500.0,0.00037529,2]
[311435188,1705099849315,-500.0,0.00037529,2]
[311435189,1705099849324,-300.0,0.00037529,2]
[311435190,1705099849335,-500.0,0.00037529,2]
[311435191,1705099849344,-500.0,0.00037529,2]
[311435192,1705099849354,-500.0,0.00037529,2]
[311435193,1705099849363,-500.0,0.00037529,2]
[311435194,1705099849372,-500.0,0.00037529,2]
[311435195,1705099849381,-500.0,0.00037529,2]
[311435196,1705099849390,-500.0,0.00037529,2]
[311435197,1705099849399,-500.0,0.00037529,2]
[311435198,1705099849409,-500.0,0.00037529,2]
[311435199,1705099849418,-500.0,0.00037529,2]
[311435200,1705099849427,-500.0,0.00037529,2]
[311435201,1705099849436,-500.0,0.00037529,2]
[311435202,1705099849446,-500.0,0.00037529,2]
[311435203,1705099849455,-500.0,0.00037529,2]
[311435204,1705099849465,-500.0,0.00037529,2]
[311435205,1705099849475,-500.0,0.00037529,2]
[311435206,1705099849485,-500.0,0.00037529,2]
[311435207,1705099849494,-500.0,0.00037529,2]
[311435208,1705099849504,-500.0,0.00037542,2]
[311435209,1705099849514,-500.0,0.00037552,2]
[311435210,1705099849523,-161.14941731,0.00037639,7]
[311435211,1705099849533,-150.13,0.00037788,2]
[311435212,1705099849709,-1029.82091327,0.0003779,2]
[311435213,1705099849719,-5325.12457888,0.00037798,10]
[311435214,1705099849728,-4998.93,0.00037808,2]
[311435215,1705099849737,-4600.77,0.00037808,2]
[311435216,1705099849746,-292.880047,0.00037824,2]
[311435217,1705099849756,-380.898319,0.00037824,2]
[311435218,1705099849765,-392.679316,0.00037824,2]
[311435219,1705099849774,-150.13,0.0003786,2]
[311435220,1705099849784,-156.90919227,0.00037868,7]
[311435221,1705099849793,-15975.3737366,0.0003787,10]
[311435222,1705099849801,-150.13,0.0003787,2]
[311435223,1705099849810,-150.13,0.0003787,2]
[311435224,1705099849819,-21300.4983155,0.0003788,10]
[311435225,1705099849830,-150.13,0.0003788,2]
[311435226,1705099849839,-150.13,0.0003788,2]
[311435227,1705099849847,-150.13,0.0003788,2]
[311435228,1705099849856,-4473.68397579,0.0003789,10]
[311435229,1705099849868,-280.27417697,0.0003789,10]
[311435230,1705099849879,-379.24221432,0.0003789,10]
[311435231,1705099849894,-634.42820538,0.0003789,10]
[311435232,1705099849997,-6895.33541699,0.0003789,10]
[311435233,1705099850013,-21104.70427102,0.0003789,10]
[311435234,1705099850055,-2013.62671314,0.0003789,10]
[311435235,1705099850067,-17469.95081519,0.0003789,10]
[311435236,1705099850076,-1332.81086342,0.0003789,2]
[311435237,1705099850086,-936.29906194,0.0003789,2]
[311435238,1705099850095,-150.13,0.0003789,2]
[311435239,1705099850105,-150.13,0.0003789,2]
[311435240,1705099850114,-150.13,0.0003789,2]
[311435241,1705099850123,-150.13,0.0003789,2]
[311435242,1705099850132,-150.13,0.0003789,2]
[311435243,1705099850142,-150.13,0.0003789,2]
[311435244,1705099850151,-150.13,0.0003789,2]
[311435245,1705099850160,-150.13,0.0003789,2]
[311435246,1705099850169,-150.13,0.0003789,2]
[311435247,1705099850178,-150.13,0.0003789,2]
[311435248,1705099850187,-150.13,0.0003789,2]
[311435249,1705099850196,-150.13,0.0003789,2]
[311435250,1705099850205,-150.13,0.0003789,2]
[311435251,1705099850214,-11311.01575371,0.000379,2]
[311435252,1705099850225,-852.00839208,0.000379,2]
[311435253,1705099850236,-12744.29957519,0.000379,2]
[311435254,1705099886083,2248.9807,0.00021945,90]
[311435257,1705100052472,150.0,0.00021999,2]
[311435261,1705100065645,1000.0,0.00021872,2]
[311435262,1705100086475,151.40113,0.00022,3]
[311435263,1705100094194,22475.88,0.00021858,2]
[311435264,1705100104461,151.40113,0.00022,2]
[311435265,1705100105843,151.40113,0.00022,2]
[311435266,1705100106597,151.40113,0.00022,2]
[311435267,1705100107202,151.40113,0.00022,2]
[311435268,1705100108033,151.40113,0.00022,2]
[311435269,1705100108533,151.40113,0.00022,2]
[311435270,1705100112604,151.40113,0.00022,3]
[311435271,1705100114030,151.40113,0.00022,3]
[311435272,1705100114448,151.40113,0.00022,3]
[311435273,1705100114878,151.40113,0.00022,3]
[311435274,1705100115563,151.40113,0.00022,3]
[311435275,1705100116375,151.40113,0.00022,3]
[311435276,1705100116911,151.40113,0.00022,3]
[311435277,1705100117644,151.40113,0.00022,3]
[311435278,1705100118310,151.40113,0.00022,3]
[311435279,1705100118931,151.40113,0.00022,3]
[311435280,1705100119569,151.40113,0.00022,3]
[311435281,1705100120214,151.40113,0.00022,3]
[311435282,1705100120619,150.0,0.00021766,2]
[311435283,1705100120907,151.40113,0.00022,3]
[311435284,1705100121604,151.40113,0.00022,3]
[311435285,1705100122258,151.40113,0.00022,3]
[311435286,1705100122903,151.40113,0.00022,3]
[311435287,1705100123563,151.40113,0.00022,3]
[311435288,1705100124971,151.40113,0.00022,3]
[311435289,1705100125378,151.40113,0.00022,3]
[311435290,1705100125872,151.40113,0.00022,3]
[311435291,1705100126575,151.40113,0.00022,3]
[311435292,1705100127230,151.40113,0.00022,3]
[311435293,1705100127790,151.40113,0.00022,3]
[311435294,1705100128482,151.40113,0.00022,3]
[311435295,1705100129141,151.40113,0.00022,3]
[311435296,1705100129824,151.40113,0.00022,3]
[311435297,1705100130728,151.40113,0.00022,3]
[311435298,1705100131104,151.40113,0.00022,3]
[311435299,1705100131719,151.40113,0.00022,3]
[311435300,1705100132343,151.40113,0.00022,3]
[311435301,1705100132972,151.40113,0.00022,3]
[311435302,1705100133638,151.40113,0.00022,3]
[311435303,1705100134297,151.40113,0.00022,3]
[311435304,1705100135721,151.40113,0.00022,3]
[311435305,1705100136039,151.40113,0.00022,3]
[311435306,1705100136283,151.40113,0.00022,3]
[311435307,1705100136865,151.40113,0.00022,3]
[311435308,1705100137658,151.40113,0.00022,3]
[311435309,1705100138199,151.40113,0.00022,3]
[311435310,1705100138885,151.40113,0.00022,3]
[311435311,1705100139466,151.40113,0.00022,3]
[311435312,1705100145000,151.40113,0.00022,3]
[311435313,1705100145434,151.40113,0.00022,3]
[311435314,1705100146272,151.40113,0.00022,3]
[311435315,1705100146743,151.40113,0.00022,3]
[311435316,1705100147277,151.40113,0.00022,3]
[311435317,1705100147996,151.40113,0.00022,3]
[311435318,1705100148540,151.40113,0.00022,3]
[311435319,1705100149136,151.40113,0.00022,3]
[311435320,1705100149782,151.40113,0.00022,3]
[311435321,1705100150453,151.40113,0.00022,3]
[311435322,1705100151170,151.40113,0.00022,3]
[311435323,1705100151809,151.40113,0.00022,3]
[311435324,1705100152468,151.40113,0.00022,3]
[311435325,1705100153085,151.40113,0.00022,3]
[311435326,1705100153662,151.40113,0.00022,3]
[311435327,1705100154308,151.40113,0.00022,3]
[311435328,1705100161719,359.04,0.00019902,2]
[311435329,1705100162203,151.40113,0.00022,3]
[311435330,1705100162692,151.40113,0.00022,3]
[311435331,1705100163272,151.40113,0.00022,3]
[311435332,1705100163863,151.40113,0.00022,3]
[311435333,1705100164507,151.40113,0.00022,3]
[311435334,1705100165133,151.40113,0.00022,3]
[311435335,1705100165732,151.40113,0.00022,3]
[311435336,1705100166372,151.40113,0.00022,3]
[311435337,1705100167777,151.40113,0.00022,3]
[311435338,1705100167937,151.40113,0.00022,3]
[311435339,1705100170444,168.68,0.00021844,2]
[311435340,1705100172252,151.40113,0.00022,3]
[311435341,1705100172913,151.40113,0.00022,3]
[311435342,1705100173760,151.40113,0.00022,3]
[311435343,1705100174090,151.40113,0.00022,3]
[311435344,1705100174761,151.40113,0.00022,3]
[311435345,1705100175410,151.40113,0.00022,3]
[311435346,1705100178670,200.0,0.0002183,2]
[311435347,1705100182385,151.40113,0.00022,3]
[311435348,1705100197498,187.40113,0.00022,3]
[311435349,1705100228102,250.0,0.00021766,2]
[311435350,1705100259564,150.0,0.00021766,2]
[311435351,1705100266600,159.16,0.00021934,2]
[311435352,1705100289048,173.39,0.00021809,2]
[311435353,1705100313115,190.31,0.00021725,2]
[311435354,1705100351582,176.09,0.00021766,2]
[311435355,1705100358821,366.33,0.00021673,2]
[311435356,1705100389410,152.42,0.00021874,2]
[311435357,1705100442796,500.0,0.000192,2]
[311435358,1705100460341,156.02,0.00021654,2]
[311435359,1705100467090,250.0,0.0002162,2]
[311435361,1705100599586,341.08,0.00019695,2]
[311435362,1705100599930,341.08,0.00021958,2]
[311435363,1705100602377,200.0,0.00021618,2]
[311435364,1705100605896,183.96,0.00021611,2]
[311435365,1705100764132,207.0,0.00021395,2]
[311435367,1705100807203,341.9,0.0002163,2]
[311435368,1705100845216,155.56092317,0.00021922,2]
[311435370,1705100917436,250.0,0.00021473,2]
[311435401,1705100958720,152.42,0.00021626,2]
[311435402,1705100960262,176.09,0.00021765,2]
[311435403,1705100973853,600.0,0.0002,2]
[311435404,1705101006823,150.0,0.00021765,2]
[311435405,1705101031053,306.97,0.00019561,2]
[311435406,1705101031171,306.97,0.00021825,2]
[311435410,1705101034003,-494.02868803,0.00022007,2]
[311435411,1705101034019,-1000.0,0.00022008,2]
[311435412,1705101034035,-5406.31562334,0.00022008,2]
[311435413,1705101034053,-6261.35337378,0.00022008,2]
[311435414,1705101034070,-263.08356569,0.00022009,2]
[311435415,1705101034085,-3141.15835728,0.00022009,2]
[311435416,1705101034100,-2921.70707621,0.00022011,2]
[311435417,1705101034116,-155.56092316,0.00022015,2]
[311435418,1705101034131,-150.0,0.00022017,2]
[311435419,1705101034146,-300.0,0.00022017,2]
[311435420,1705101034161,-276.30279996,0.00022032,2]
[311435421,1705101034176,-276.30279996,0.00022032,2]
[311435422,1705101034192,-276.30279996,0.00022032,2]
[311435423,1705101034207,-250.0,0.0002204,2]
[311435424,1705101034222,-155.56092316,0.00022108,2]
[311435425,1705101034237,-754.26,0.00022195,2]
[311435426,1705101034252,-499.99,0.00022195,2]
[311435427,1705101034268,-156.02,0.00022195,2]
[311435428,1705101034283,-155.56092316,0.00022201,2]
[311435430,1705101034299,-155.56092316,0.00022294,2]
[311435432,1705101034316,-1671.3956,0.000223,2]
[311435434,1705101034331,-2458.203,0.000223,2]
[311435437,1705101034346,-266.90586008,0.000223,2]
[311435440,1705101034361,-176.09,0.00022313,2]
[311435442,1705101034376,-366.98757898,0.00022314,2]
[311435445,1705101034392,-150.0,0.00022314,2]
[311435447,1705101034407,-155.56092316,0.00022387,2]
[311435450,1705101034423,-159.16,0.00022392,2]
[311435452,1705101034438,-6797.55,0.00022395,2]
[311435455,1705101034453,-4031.8,0.00022395,2]
[311435458,1705101034469,-1261.43,0.00022395,2]
[311435460,1705101034484,-23355.79539696,0.00022395,2]
[311435463,1705101034500,-1058.4088,0.000224,2]
[311435466,1705101034517,-14926.05071201,0.000224,2]
[311435468,1705101034531,-5753.22699852,0.000224,2]
[311435499,1705101034816,-6707.95466831,0.000224,2]
[311435503,1705101034858,-376.86,0.000224,2]
[311435504,1705101034871,-3833.28649766,0.000224,2]
[311435505,1705101034887,-900.5384235,0.000224,2]
[311435506,1705101034897,-1593.27760544,0.000224,2]
[311435507,1705101034908,-24179.91519456,0.000224,2]
[311435508,1705101034918,-500.0,0.000224,2]
[311435509,1705101034927,-1003.77588213,0.00022424,5]
[311435510,1705101034937,-155.56092316,0.0002248,2]
[311435511,1705101034946,-331.53647864,0.00022535,2]
[311435512,1705101034956,-454.7456,0.00022564,2]
[311435513,1705101034965,-155.56092316,0.00022573,2]
[311435514,1705101034975,-341.9,0.00022608,2]
[311435515,1705101034984,-155.0,0.00022648,2]
[311435516,1705101034994,-408.52891632,0.00022649,2]
[311435517,1705101035004,-2579.44686391,0.00022664,2]
[311435518,1705101035013,-539.5003,0.00022664,2]
[311435519,1705101035023,-86288.39068176,0.00022664,2]
[311435520,1705101035035,-30198.44811824,0.00022664,2]
[311435521,1705101035045,-1000.0,0.00022665,2]
[311435522,1705101035055,-528.32939016,0.00022665,2]
[311435523,1705101035065,-686.93636994,0.00022665,2]
[311435524,1705101035075,-2486.97229079,0.00022665,2]
[311435525,1705101035084,-2525.95441018,0.00022665,2]
[311435526,1705101035093,-2745.6588465,0.00022665,2]
[311435527,1705101035103,-273.73240553,0.00022665,2]
[311435528,1705101035113,-2335.96816867,0.00022665,2]
[311435529,1705101035131,-411.41971467,0.00022665,2]
[311435530,1705101035143,-1352.55119941,0.00022665,2]
[311435531,1705101035153,-19181.56080108,0.00022665,2]
[311435532,1705101035162,-155.56092316,0.00022666,2]
[311435533,1705101035171,-2579.44686386,0.00022685,2]
[311435534,1705101035181,-2579.44686386,0.00022707,2]
[311435535,1705101035190,-528.32939016,0.00022724,2]
[311435536,1705101035198,-2579.44686386,0.00022728,2]
[311435537,1705101035208,-156.02,0.00022736,2]
[311435538,1705101035218,-2579.44686386,0.0002275,2]
[311435539,1705101035228,-249.3394592,0.00022754,2]
[311435540,1705101035237,-249.3394592,0.00022755,2]
[311435541,1705101035246,-249.3394592,0.00022756,2]
[311435542,1705101035256,-1000.0,0.00022763,2]
[311435543,1705101035266,-1000.0,0.00022763,2]
[311435544,1705101035275,-1000.0,0.00022763,2]
[311435545,1705101035284,-1000.0,0.00022763,2]
[311435546,1705101035298,-1000.0,0.00022763,2]
[311435547,1705101035308,-1000.0,0.00022763,2]
[311435548,1705101035319,-1000.0,0.00022763,2]
[311435549,1705101035329,-1000.0,0.00022763,2]
[311435550,1705101035340,-1000.0,0.00022763,2]
[311435551,1705101035349,-1000.0,0.00022763,2]
[311435552,1705101035358,-1000.0,0.00022763,2]
[311435553,1705101035368,-1000.0,0.00022763,2]
[311435554,1705101035378,-1000.0,0.00022763,2]
[311435555,1705101035388,-1000.0,0.00022763,2]
[311435556,1705101035397,-1000.0,0.00022763,2]
[311435557,1705101035406,-1000.0,0.00022763,2]
[311435558,1705101035416,-825.8404659,0.00022763,2]
[311435559,1705101035425,-338.40757311,0.00022763,2]
[311435560,1705101035435,-243.52026979,0.00022763,2]
[311435561,1705101035444,-2526.56254031,0.00022763,2]
[311435562,1705101035454,-2419.72480697,0.00022763,2]
[311435563,1705101035468,-430.67499105,0.00022763,2]
[311435564,1705101035480,-823.70403487,0.00022763,2]
[311435565,1705101035492,-350.00592856,0.00022763,2]
[311435566,1705101035504,-346.23449546,0.00022763,2]
[311435567,1705101035514,-221.71837943,0.00022763,2]
[311435568,1705101035547,-294.17524254,0.00022763,2]
[311435569,1705101035557,-155.0855656,0.00022763,2]
[311435570,1705101035568,-940.88815019,0.00022763,2]
[311435571,1705101035577,-589.45823217,0.00022763,2]
[311435572,1705101035587,-643.4185131,0.00022763,2]
[311435573,1705101035596,-270.2166863,0.00022763,2]
[311435574,1705101035606,-163.7690261,0.00022763,2]
[311435575,1705101035615,-1189.23243156,0.00022763,2]
[311435576,1705101035625,-198.87132187,0.00022763,2]
[311435577,1705101035634,-37972.38997028,0.00022764,2]
[311435578,1705101035644,-190283.7075171,0.00022764,2]
[311435579,1705101035656,-497.48514,0.00022764,2]
[311435580,1705101035667,-641.9811826,0.00022764,2]
[311435581,1705101035679,-439.53018558,0.00022764,2]
[311435582,1705101035691,-511.06796016,0.00022764,2]
[311435583,1705101035709,-731343.30584703,0.00022764,2]
[311435584,1705101035719,-1069.15058471,0.00022764,2]
[311435585,1705101035730,-1366.24536935,0.00022764,2]
[311435586,1705101035740,-6425.39523629,0.00022764,2]
[311435587,1705101035750,-580.66182185,0.00022764,2]
[311435588,1705101035759,-155.0,0.00022764,2]
[311435589,1705101035769,-376.4645703,0.00022764,2]
[311435590,1705101035779,-381.39125751,0.00022764,2]
[311435591,1705101035789,-233.62449319,0.00022764,2]
[311435592,1705101035798,-2014.78814012,0.00022764,2]
[311435593,1705101035807,-155.0,0.00022764,2]
[311435594,1705101035820,-256.92506171,0.00022764,2]
[311435595,1705101035830,-3038.48329408,0.00022764,2]
[311435596,1705101035839,-16739.78735962,0.00022764,2]
[311435597,1705101035849,-265.04401612,0.00022765,2]
[311435598,1705101035859,-504924.79064027,0.00022765,2]
[311435599,1705101035868,-363794.8229548,0.00022765,2]
[311435600,1705101035881,-745.04240241,0.00022765,2]
[311435601,1705101035894,-2289.28608915,0.00022765,2]
[311435602,1705101035907,-974.19748854,0.00022765,2]
[311435605,1705101039193,-266.90586008,0.00022482,2]